bitfinex/quotes_ETHUSD_20240925
["timestamp","ask_amount","ask_price","bid_price","bid_amount"]
[1727277207301,10.14953691,2628.2,2628.1,0.0378862]
[1727277208960,7.358435,2628.2,2628.1,0.0378862]
[1727277209205,10.14953691,2628.2,2628.1,0.0378862]
[1727277210564,4.358435,2628.2,2628.1,0.0378862]
[1727277210764,4.358435,2628.2,2628.1,0.8283862]
[1727277212103,6.75144711,2628.2,2628.1,0.8283862]
[1727277212306,6.75173752,2628.2,2628.1,0.8283862]
[1727277212919,0.553555,2628.2,2628.1,0.8283862]
[1727277213071,0.553555,2628.2,2628.1,1.22848735]
[1727277213271,2.54829262,2628.2,2628.1,1.22848735]
[1727277213576,0.553555,2628.2,2628.1,1.22848735]
[1727277213791,6.35317262,2628.2,2628.1,1.22848735]
[1727277213969,2.54829262,2628.2,2628.1,0.8283862]
[1727277214170,0.553555,2628.2,2628.1,0.8283862]
[1727277214398,2.1499612,2628.2,2628.1,0.8283862]
[1727277214771,5.9548412,2628.2,2628.1,0.8283862]
[1727277215280,4.358435,2628.2,2628.1,0.8283862]
[1727277215489,6.35317262,2628.2,2628.1,0.8283862]
[1727277215694,2.54829262,2628.2,2628.1,0.8283862]
[1727277215900,2.14947656,2628.2,2628.1,4.78164364]
[1727277216123,0.553555,2628.2,2628.1,8.58667364]
[1727277216523,1.59592156,2628.8,2628.5,6.97705529]
[1727277216690,1.59592156,2628.7,2628.6,0.8067]
[1727277217020,1.59592156,2628.7,2628.6,1.88485153]
[1727277217198,0.24947511,2628.7,2628.6,1.88485153]
[1727277218080,1.59592156,2628.8,2628.6,1.88485153]
[1727277218278,1.59592156,2628.8,2628.7,1.28724768]
[1727277219387,9.60231762,2629.0,2628.7,1.28724768]
[1727277219388,1.59592156,2628.9,2628.7,1.28724768]
[1727277220427,3.80401,2628.8,2628.7,1.28724768]
[1727277220649,3.80439,2628.6,2628.2,0.7555]
[1727277220819,7.60884,2628.6,2628.2,0.7555]
[1727277221415,3.80446,2628.5,2628.2,0.7555]
[1727277221737,3.80474,2628.3,2628.2,0.7555]
[1727277222598,5.40053156,2628.4,2628.2,0.7555]
[1727277222599,11.19999918,2628.4,2628.2,0.7555]
[1727277222800,3.80474,2628.3,2628.2,0.7555]
[1727277224203,3.8046,2628.4,2628.2,0.7555]
[1727277224401,7.6093,2628.4,2628.2,0.7555]
[1727277224628,3.80474,2628.3,2628.2,0.7555]
[1727277224938,3.8046,2628.4,2628.2,0.7555]
[1727277225246,3.80474,2628.3,2628.2,0.7555]
[1727277226611,3.80488,2628.2,2628.1,0.0378862]
[1727277227407,5.40053156,2628.4,2628.1,0.0378862]
[1727277227748,5.40045156,2628.5,2628.2,0.8089]
[1727277228040,3.80453,2628.5,2628.2,0.8089]
[1727277228708,3.80453,2628.5,2628.2,1.59135115]
[1727277229131,5.40033156,2628.6,2628.2,1.59135115]
[1727277229407,1.59592156,2628.7,2628.4,0.8301]
[1727277229616,1.9910897,2628.8,2628.4,0.8301]
[1727277229617,5.40000156,2628.8,2628.4,0.8301]
[1727277229846,3.80389,2628.9,2628.4,0.8301]
[1727277229847,5.39983156,2628.9,2628.5,3.95336482]
[1727277230045,3.80406,2628.8,2628.5,0.78073953]
[1727277231929,3.80424,2628.7,2628.4,0.8301]
[1727277232425,7.60817,2628.8,2628.4,0.8301]
[1727277233048,3.80416,2628.7,2628.4,0.8301]
[1727277233557,3.80445,2628.5,2628.4,0.8301]
[1727277238617,3.80472,2628.4,2628.2,0.801]
[1727277238821,3.80474,2628.3,2628.2,0.801]
[1727277240122,3.75474,2628.3,2628.2,0.801]
[1727277240452,3.80474,2628.3,2628.2,0.801]
[1727277242528,3.80488,2628.2,2628.1,0.0378862]
[1727277243542,4.72543416,2628.2,2628.1,0.0378862]
[1727277243752,6.32135572,2628.2,2628.1,0.0378862]
[1727277244280,6.71695715,2628.2,2628.1,0.0378862]
[1727277247181,8.54823416,2628.2,2628.1,0.0378862]
[1727277247362,10.94037076,2628.2,2628.1,0.0378862]
[1727277247560,8.54823416,2628.2,2628.1,0.0378862]
[1727277247746,12.27085945,2628.2,2628.1,0.0378862]
[1727277248072,12.6677935,2628.2,2628.1,0.0378862]
[1727277248245,15.4592522,2628.2,2628.1,0.0378862]
[1727277248834,15.4592522,2628.2,2627.4,0.0378862]
[1727277248835,3.55,2628.1,2627.4,0.0378862]
[1727277249065,4.62319,2627.5,2627.4,0.0378862]
[1727277249268,10.0154227,2627.5,2627.4,0.0378862]
[1727277250271,7.62319,2627.5,2627.4,0.0378862]
[1727277251197,3.80589,2627.5,2627.4,0.0378862]
[1727277254255,5.39958115,2627.6,2627.4,0.0378862]
[1727277254462,3.80575,2627.6,2627.4,0.0378862]
[1727277254663,3.80589,2627.5,2627.4,0.0378862]
[1727277258374,7.92538021,2627.5,2627.4,0.0378862]
[1727277258577,6.80589,2627.5,2627.4,0.0378862]
[1727277259704,9.2042357,2627.5,2627.4,0.0378862]
[1727277259864,9.20424172,2627.5,2627.4,0.0378862]
[1727277260065,9.60233706,2627.5,2627.4,0.0378862]
[1727277261280,8.39671846,2627.5,2627.4,0.0378862]
[1727277261476,6.80589,2627.5,2627.4,0.0378862]
[1727277262071,8.39671846,2627.5,2627.4,0.0378862]
[1727277262291,6.80589,2627.5,2627.4,0.0378862]
[1727277268838,3.80589,2627.5,2627.4,0.8008862]
[1727277269133,3.80589,2627.5,2627.4,1.19823735]
[1727277269348,3.80554,2627.8,2627.4,0.8008862]
[1727277269635,3.80554,2627.8,2627.6,0.7788]
[1727277269834,3.80517,2628.0,2627.7,3.17262529]
[1727277269986,3.80517,2628.0,2627.8,0.77571453]
[1727277270186,3.80517,2628.0,2627.6,0.7788]
[1727277270941,3.83784208,2628.2,2627.7,0.8043]
[1727277271531,3.80512,2628.1,2627.7,0.8043]
[1727277271689,3.83784208,2628.2,2627.7,4.60988]
[1727277271886,3.80503,2628.1,2627.8,0.7898]
[1727277272515,0.03291208,2628.2,2627.9,0.40385289]
[1727277272723,0.03291208,2628.2,2628.1,3.98112529]
[1727277273008,0.03291208,2628.2,2628.1,7.78615529]
[1727277278612,0.27416307,2628.2,2628.1,7.78615529]
[1727277283753,0.27416307,2628.2,2628.1,0.8085]
[1727277284483,0.27416307,2628.2,2628.1,1.269856]
[1727277285579,0.27416307,2628.2,2628.1,0.8085]
[1727277285896,0.27416307,2628.2,2627.7,0.7975]
[1727277285897,3.80516,2628.1,2627.7,0.7975]
[1727277286175,0.24144632,2628.0,2627.7,0.7975]
[1727277289673,4.04662632,2628.0,2627.7,0.7975]
[1727277289975,3.80534,2627.9,2627.7,0.7975]
[1727277290184,4.04731677,2627.9,2627.7,0.7975]
[1727277290737,4.04731677,2627.9,2627.5,4.59518]
[1727277290982,0.24197677,2627.9,2627.5,5.75634515]
[1727277291144,3.80518,2628.0,2627.6,3.80574]
[1727277291378,0.2417312,2627.9,2627.6,3.80574]
[1727277291547,0.2417312,2627.9,2627.7,4.38115052]
[1727277291749,3.83780208,2628.2,2627.8,3.94962529]
[1727277291750,0.03291208,2628.2,2627.8,3.94962529]
[1727277292061,0.03291208,2628.2,2627.8,7.75507529]
[1727277292255,0.03291208,2628.2,2627.8,4.58245]
[1727277292463,3.83786208,2628.2,2627.8,0.777]
[1727277293902,4.04679517,2628.1,2627.8,0.777]
[1727277294100,0.24162517,2628.1,2627.8,0.777]
[1727277294454,4.04667517,2628.1,2627.8,0.777]
[1727277295562,4.04667517,2628.1,2627.6,4.59943]
[1727277295756,4.04667517,2628.1,2627.6,8.4051]
[1727277295967,4.04667517,2628.1,2627.6,9.04973295]
[1727277296168,0.24162517,2628.1,2627.8,6.97808529]
[1727277296369,0.24162517,2628.1,2627.9,3.80527]
[1727277296579,0.24162517,2628.1,2627.8,6.97808529]
[1727277297169,0.24162517,2628.1,2627.8,10.78345529]
[1727277297380,0.24162517,2628.1,2627.9,3.80531]
[1727277299211,0.24162517,2628.1,2627.8,8.26349858]
[1727277299409,0.24162517,2628.1,2628.0,7.80439529]
[1727277299815,0.03291208,2628.2,2628.1,3.0]
[1727277300136,0.03291208,2628.2,2628.1,8.18310123]
[1727277300434,0.03291208,2628.2,2628.1,10.00363765]
[1727277300783,1.59082846,2629.7,2628.1,10.00363765]
[1727277300784,5.39349846,2629.8,2629.1,6.97610529]
[1727277301120,5.39349846,2629.8,2629.3,6.97582529]
[1727277301121,7.60535,2629.8,2629.3,6.97582529]
[1727277301331,3.80286,2629.6,2629.3,3.17262529]
[1727277301500,3.80286,2629.6,2629.0,0.799]
[1727277301682,0.8136,2629.5,2629.0,0.799]
[1727277301883,0.8136,2629.5,2628.9,6.97638529]
[1727277301884,3.80317,2629.4,2628.8,0.7516]
[1727277302089,7.60645,2629.4,2628.9,3.80386]
[1727277302308,3.80329,2629.3,2628.8,4.55561]
[1727277302626,3.80344,2629.2,2628.7,6.97664529]
[1727277302799,3.80331,2629.3,2628.8,3.80392]
[1727277302982,3.80331,2629.3,2628.7,3.80402]
[1727277303583,3.80345,2629.2,2628.7,3.80402]
[1727277304287,7.60697,2629.2,2628.7,3.80402]
[1727277304584,0.2263395,2629.1,2628.7,3.80402]
[1727277304779,0.2263395,2629.1,2628.1,16.10161765]
[1727277304780,3.80403,2628.8,2628.3,4.62076]
[1727277305022,4.59532,2629.0,2628.3,4.62076]
[1727277305023,4.59527,2629.0,2628.3,4.62076]
[1727277305185,4.59527,2629.0,2628.3,7.79338529]
[1727277305186,0.22623857,2628.7,2628.3,7.79338529]
[1727277305382,4.59527,2629.0,2628.5,3.80443]
[1727277305581,0.22623857,2628.6,2628.5,3.80437]
[1727277305837,2.7332,2629.3,2628.8,3.80398]
[1727277306144,2.7332,2629.3,2628.9,3.17262529]
[1727277306145,1.9,2629.3,2628.9,3.17262529]
[1727277306342,1.9,2629.3,2629.0,3.8037]
[1727277306690,5.7033,2629.3,2628.9,3.17262529]
[1727277307182,5.7033,2629.3,2628.8,3.80392]
[1727277307394,6.653944,2629.3,2628.8,3.80392]
[1727277307628,3.80365,2629.1,2628.6,4.603]
[1727277307828,3.80365,2629.1,2628.4,4.61761]
[1727277307829,3.8039,2628.9,2628.4,4.61761]
[1727277308027,4.5758,2629.3,2628.5,3.248701]
[1727277308181,3.80355,2629.2,2628.7,3.17262529]
[1727277308712,3.80355,2629.2,2628.7,3.24869912]
[1727277309028,4.57574,2629.3,2628.8,3.80393]
[1727277309320,3.80344,2629.2,2628.8,3.80393]
[1727277309713,3.80344,2629.2,2628.7,3.24869912]
[1727277310036,3.80359,2629.1,2628.7,3.17262529]
[1727277310325,7.60697,2629.2,2628.7,6.97677529]
[1727277310685,3.80344,2629.2,2628.7,7.05284782]
[1727277310896,3.8036,2629.1,2628.6,3.80416]
[1727277311299,3.8036,2629.1,2628.6,7.60839]
[1727277311581,3.8036,2629.1,2628.6,3.80416]
[1727277311785,3.80344,2629.2,2628.7,3.80415]
[1727277312132,3.80344,2629.2,2628.7,7.0528491]
[1727277312422,3.80344,2629.2,2628.7,3.17262529]
[1727277312633,3.80367,2629.1,2628.7,6.97676529]
[1727277313383,3.80367,2629.1,2628.7,3.17262529]
[1727277313831,4.57574,2629.3,2628.7,6.97667529]
[1727277314033,4.57574,2629.3,2628.7,7.05274825]
[1727277314034,3.80349,2629.2,2628.7,7.05274825]
[1727277314202,4.57573,2629.3,2628.8,3.80393]
[1727277314401,4.57573,2629.3,2628.8,4.62643]
[1727277314600,4.57573,2629.3,2628.8,8.43037]
[1727277314805,4.57573,2629.3,2628.8,4.62643]
[1727277315333,4.57573,2629.3,2628.8,4.62642]
[1727277316012,1.98803319,2629.6,2629.1,6.97609529]
[1727277316013,1.59082846,2629.6,2629.1,6.97609529]
[1727277316220,1.59082846,2629.6,2628.8,5.89539161]
[1727277316221,5.39340846,2629.8,2629.3,6.97591529]
[1727277316535,3.80258,2629.8,2629.5,3.17262529]
[1727277316688,3.80271,2629.7,2629.2,4.62587]
[1727277316888,3.80286,2629.6,2629.2,5.468805]
[1727277317096,3.80258,2629.8,2629.2,5.468805]
[1727277317332,3.80258,2629.8,2629.3,3.17262529]
[1727277317637,5.39321846,2630.0,2629.5,3.17262529]
[1727277317847,3.80239,2630.0,2629.5,6.97556529]
[1727277318017,3.80239,2630.0,2629.5,8.05343182]
[1727277318190,4.61814,2630.1,2629.7,3.17262529]
[1727277318387,7.6042,2630.2,2629.7,6.97532529]
[1727277318621,3.80209,2630.2,2629.6,0.8182]
[1727277318828,3.80239,2630.0,2629.6,0.8182]
[1727277319128,3.80239,2630.0,2629.4,4.62131]
[1727277319129,3.80243,2629.9,2629.4,4.62131]
[1727277319329,3.80243,2629.9,2629.4,0.8182]
[1727277319330,3.80264,2629.8,2629.4,0.8182]
[1727277319506,0.816,2630.0,2629.2,0.842935]
[1727277319507,3.80283,2629.7,2629.2,4.646345]
[1727277320027,0.22767418,2629.6,2629.2,4.646345]
[1727277320201,0.22767418,2629.6,2629.3,1.24142503]
[1727277321969,3.80302,2629.5,2629.1,0.7918]
[1727277322170,7.6061,2629.5,2629.1,0.7918]
[1727277322464,0.22760692,2629.4,2628.9,0.7974]
[1727277322664,3.80338,2629.3,2628.9,0.7974]
[1727277322864,4.03098692,2629.3,2628.9,0.7974]
[1727277323871,4.03098692,2629.3,2628.6,4.6075]
[1727277323872,3.80377,2629.0,2628.6,4.6075]
[1727277324052,0.7697,2629.2,2628.5,4.60764]
[1727277324053,3.80371,2629.1,2628.5,4.60764]
[1727277324230,0.22724255,2628.9,2628.6,0.460764]
[1727277324550,0.22724255,2628.9,2628.5,4.60764]
[1727277324551,3.80411,2628.8,2628.5,0.8033]
[1727277324901,3.80411,2628.8,2628.4,3.80459]
[1727277325399,0.2271192,2628.7,2628.3,7.74865529]
[1727277325758,3.80411,2628.8,2628.3,7.74865529]
[1727277326103,3.80416,2628.7,2628.4,0.77486553]
[1727277326259,4.03115584,2628.7,2628.3,0.7714]
[1727277326895,7.83541584,2628.7,2628.3,0.7714]
[1727277327265,7.83541584,2628.7,2628.1,6.97753529]
[1727277327266,3.80448,2628.5,2628.1,6.97753529]
[1727277327499,0.2267435,2628.6,2628.2,0.77439353]
[1727277327663,3.80416,2628.7,2628.2,4.57918353]
[1727277328001,3.80416,2628.7,2628.3,3.17262529]
[1727277328205,3.80416,2628.7,2628.3,4.32829717]
[1727277328407,3.80445,2628.5,2628.3,1.15567188]
[1727277328715,4.62161,2628.3,2627.7,4.5615]
[1727277328913,3.80496,2628.2,2627.7,8.36702]
[1727277329063,3.80505,2628.1,2627.7,4.5615]
[1727277329258,0.22653037,2628.1,2627.7,4.5615]
[1727277329563,3.80513,2628.1,2627.4,0.7938862]
[1727277329759,3.80579,2627.6,2627.4,0.0378862]
[1727277329994,3.80589,2627.5,2627.4,0.0378862]
[1727277330165,4.03225208,2627.5,2627.4,0.0378862]
[1727277331406,8.59905629,2627.5,2627.4,0.0378862]
[1727277331903,10.18988475,2627.5,2627.4,0.0378862]
[1727277332105,8.59905629,2627.5,2627.4,0.0378862]
[1727277332294,13.91251004,2627.5,2627.4,0.0378862]
[1727277332497,12.32168158,2627.5,2627.4,0.0378862]
[1727277332878,12.71928941,2627.5,2627.4,0.0378862]
[1727277333078,9.54666412,2627.5,2627.4,0.0378862]
[1727277333269,12.71928941,2627.5,2627.4,0.0378862]
[1727277334171,14.70388601,2627.5,2627.4,0.0378862]
[1727277334622,9.54666412,2627.5,2627.4,0.0378862]
[1727277335112,8.99666412,2627.5,2627.4,0.0378862]
[1727277335313,8.59905629,2627.5,2627.4,0.0378862]
[1727277338115,7.81525208,2627.5,2627.4,0.0378862]
[1727277341205,8.36525208,2627.5,2627.4,0.0378862]
[1727277341918,8.76246927,2627.5,2627.4,0.0378862]
[1727277342826,10.76246927,2627.5,2627.4,0.0378862]
[1727277343514,8.76246927,2627.5,2627.4,0.0378862]
[1727277343681,10.0192952,2627.5,2627.4,0.0378862]
[1727277344282,9.4692952,2627.5,2627.4,0.0378862]
[1727277344600,10.0192952,2627.5,2627.4,0.0378862]
[1727277344776,12.0192952,2627.5,2627.4,0.0378862]
[1727277349314,12.4845709,2627.5,2627.4,0.0378862]
[1727277349545,12.97082988,2627.5,2627.4,0.0378862]
[1727277351721,13.36878165,2627.5,2627.4,0.0378862]
[1727277351942,12.41724697,2627.5,2627.4,0.0378862]
[1727277352960,9.86724697,2627.5,2627.4,0.0378862]
[1727277353146,11.86724697,2627.5,2627.4,0.0378862]
[1727277353344,12.33252267,2627.5,2627.4,0.0378862]
[1727277354046,12.81878165,2627.5,2627.4,0.0378862]
[1727277354247,13.36878165,2627.5,2627.4,0.0378862]
[1727277354433,3.80705,2626.7,2626.6,0.0378862]
[1727277354638,7.08632311,2626.7,2626.6,0.0378862]
[1727277358409,7.84072311,2626.7,2626.6,0.0378862]
[1727277358613,8.39072311,2626.7,2626.6,0.0378862]
[1727277358858,8.78805553,2626.7,2626.6,0.0378862]
[1727277359159,13.22708819,2626.7,2626.6,0.0378862]
[1727277364020,10.04488146,2626.7,2626.6,0.0378862]
[1727277364254,9.29048146,2626.7,2626.6,0.0378862]
[1727277364425,12.47268819,2626.7,2626.6,0.0378862]
[1727277365058,13.26248819,2626.7,2626.6,0.0378862]
[1727277365932,13.72776389,2626.7,2626.6,0.0378862]
[1727277367054,13.26248819,2626.7,2626.6,0.0378862]
[1727277369273,8.74048146,2626.7,2626.6,0.0378862]
[1727277369620,11.52535577,2626.7,2626.6,0.0378862]
[1727277370553,12.07535577,2626.7,2626.6,0.0378862]
[1727277371862,8.89314904,2626.7,2626.6,0.0378862]
[1727277372356,8.34314904,2626.7,2626.6,0.0378862]
[1727277372556,11.52535577,2626.7,2626.6,0.0378862]
[1727277372771,12.07535577,2626.7,2626.6,0.0378862]
[1727277373220,12.88575577,2626.7,2626.6,0.0378862]
[1727277373419,13.28268276,2626.7,2626.6,0.0378862]
[1727277374263,15.27141551,2626.7,2626.6,0.0378862]
[1727277374820,13.28268276,2626.7,2626.6,0.0378862]
[1727277377072,15.66916206,2626.7,2626.6,0.0378862]
[1727277377240,15.67217708,2626.7,2626.6,0.0378862]
[1727277377468,13.28268276,2626.7,2626.6,0.0378862]
[1727277377667,12.47228276,2626.7,2626.6,0.0378862]
[1727277377872,14.06673331,2626.7,2626.6,0.0378862]
[1727277378079,15.28745009,2626.7,2626.6,0.0378862]
[1727277378276,15.68404635,2626.7,2626.6,0.0378862]
[1727277378985,12.47195203,2626.7,2626.6,0.0378862]
[1727277379304,10.26852984,2626.7,2626.6,0.0378862]
[1727277379604,7.08632311,2626.7,2626.6,0.0378862]
[1727277379769,4.08632311,2626.7,2626.6,0.0378862]
[1727277380962,7.08632311,2626.7,2626.6,0.0378862]
[1727277382198,10.26852984,2626.7,2626.6,0.0378862]
[1727277382700,7.63632311,2626.7,2626.6,0.0378862]
[1727277382859,11.21536839,2626.7,2626.6,0.0378862]
[1727277386937,13.21536839,2626.7,2626.6,0.0378862]
[1727277387211,14.01876839,2626.7,2626.6,0.0378862]
[1727277390611,14.01876839,2626.7,2625.8,0.0378862]
[1727277390612,3.80821,2625.9,2625.8,0.0378862]
[1727277390820,6.80821,2625.9,2625.8,0.0378862]
[1727277391020,7.06851798,2625.9,2625.8,0.0378862]
[1727277394707,7.06851798,2625.9,2625.8,0.8286862]
[1727277397035,10.25072471,2625.9,2625.8,0.0378862]
[1727277397199,14.12943399,2625.9,2625.8,0.0378862]
[1727277397537,11.88838651,2625.9,2625.8,0.0378862]
[1727277398028,10.94616469,2625.9,2625.8,0.0378862]
[1727277398185,9.85850289,2625.9,2625.8,0.0378862]
[1727277398590,7.06851798,2625.9,2625.8,0.0378862]
[1727277400640,13.59214206,2625.9,2625.8,0.0378862]
[1727277401206,10.80072471,2625.9,2625.8,0.0378862]
[1727277402064,11.57042471,2625.9,2625.8,0.0378862]
[1727277402347,11.96740028,2625.9,2625.8,0.0378862]
[1727277403057,15.91520639,2625.9,2625.8,0.0378862]
[1727277403208,16.41673209,2625.9,2625.8,0.0378862]
[1727277403419,16.90299107,2625.9,2625.8,0.0378862]
[1727277404031,16.90299107,2625.9,2625.0,0.0378862]
[1727277404032,9.99157673,2625.1,2625.0,0.0378862]
[1727277404225,12.54157673,2625.1,2625.0,0.0378862]
[1727277404454,15.58843107,2625.1,2625.0,0.0378862]
[1727277404613,12.79824676,2625.1,2625.0,0.0378862]
[1727277405257,15.58442929,2625.1,2625.0,0.0378862]
[1727277406347,12.79824676,2625.1,2625.0,0.0378862]
[1727277406848,15.58442929,2625.1,2625.0,0.0378862]
[1727277407053,12.79824676,2625.1,2625.0,0.0378862]
[1727277408056,12.79824676,2625.1,2624.9,2.54234529]
[1727277408057,8.14972,2625.0,2624.9,2.54234529]
[1727277408356,11.18786136,2625.0,2624.9,2.54234529]
[1727277408512,8.40585921,2625.0,2624.9,2.54234529]
[1727277409115,10.72585921,2625.0,2624.9,2.54234529]
[1727277409416,8.40585921,2625.0,2624.9,2.54234529]
[1727277409617,12.99695521,2625.0,2624.9,2.54234529]
[1727277409942,12.99695521,2625.0,2624.9,2.38741529]
[1727277410264,4.57183,2624.3,2624.2,0.0378862]
[1727277410549,12.05884424,2624.3,2624.2,0.0378862]
[1727277410760,12.05884424,2624.3,2623.5,0.8114]
[1727277410761,6.81155,2623.6,2623.5,0.8114]
[1727277411299,7.06480894,2623.6,2623.5,0.8114]
[1727277411461,4.06480894,2623.6,2623.5,0.8114]
[1727277414465,4.61480894,2623.6,2623.5,0.8114]
[1727277414638,4.06480894,2623.6,2623.5,0.8114]
[1727277416976,7.06480894,2623.6,2623.5,0.8114]
[1727277417361,6.8117,2623.5,2623.4,0.0378862]
[1727277417751,7.06412371,2623.5,2623.4,0.0378862]
[1727277419477,7.06412371,2623.5,2623.4,0.03664783]
[1727277420881,7.06412371,2623.5,2623.4,0.86964783]
[1727277423081,4.06412371,2623.5,2623.4,0.86964783]
[1727277423817,0.25242371,2623.5,2623.4,0.86964783]
[1727277424394,3.81156,2623.6,2623.4,0.86964783]
[1727277424570,0.24995311,2623.5,2623.4,0.86964783]
[1727277424971,3.81156,2623.6,2623.4,0.86964783]
[1727277425176,0.25004481,2623.5,2623.4,1.33782361]
[1727277425543,3.81135,2623.8,2623.4,1.33782361]
[1727277425820,0.25013651,2623.5,2623.4,1.33782361]
[1727277426397,3.81141,2623.7,2623.4,1.33782361]
[1727277426613,0.25013651,2623.5,2623.4,1.33782361]
[1727277426906,3.81135,2623.8,2623.5,0.8118]
[1727277426907,7.62271,2623.8,2623.5,0.8118]
[1727277427135,7.62269,2623.8,2623.5,0.8118]
[1727277427451,3.81134,2623.8,2623.5,0.8118]
[1727277427637,3.81134,2623.8,2623.5,1.32466036]
[1727277427994,7.62273,2623.8,2623.5,1.32466036]
[1727277428240,3.81143,2623.7,2623.5,1.32466036]
[1727277428418,7.62274,2623.8,2623.5,1.32466036]
[1727277428607,7.62274,2623.8,2623.5,0.8118]
[1727277429010,3.81145,2623.7,2623.5,0.8118]
[1727277429223,3.81132,2623.8,2623.5,0.8118]
[1727277429907,0.25021101,2623.7,2623.5,0.8118]
[1727277430109,10.62215,2624.0,2623.6,0.7835]
[1727277430440,6.81106,2624.0,2623.7,0.7835]
[1727277430642,3.8112,2623.9,2623.7,0.7835]
[1727277431433,3.81126,2623.8,2623.7,0.7835]
[1727277432386,3.81158,2623.6,2623.5,0.7582]
[1727277433036,3.81158,2623.6,2623.4,0.03664783]
[1727277433233,3.8117,2623.5,2623.4,0.03664783]
[1727277433677,6.8117,2623.5,2623.4,0.03664783]
[1727277435273,6.8117,2623.5,2623.4,0.85604783]
[1727277435486,3.81158,2623.6,2623.4,0.85604783]
[1727277435660,3.81047,2624.4,2623.6,0.7649]
[1727277435863,3.81136,2623.8,2623.6,0.7649]
[1727277436541,3.81105,2624.0,2623.6,3.81154]
[1727277436898,3.81126,2623.8,2623.7,0.7923]
[1727277437174,3.8117,2623.5,2623.4,0.82894783]
[1727277438159,3.81157,2623.6,2623.4,0.82894783]
[1727277439200,3.81156,2623.6,2623.4,0.82894783]
[1727277439363,3.81141,2623.7,2623.4,0.82894783]
[1727277439879,3.81141,2623.7,2623.5,0.806]
[1727277440185,3.81155,2623.6,2623.5,0.806]
[1727277442543,3.8113,2623.8,2623.5,0.806]
[1727277442946,6.81113,2623.9,2623.6,4.40699219]
[1727277443237,6.81113,2623.9,2623.6,1.22478546]
[1727277443616,6.81112,2623.9,2623.6,1.22478546]
[1727277444007,3.81141,2623.7,2623.6,0.8223]
[1727277444204,6.81112,2623.9,2623.6,0.8223]
[1727277445040,3.81084,2624.1,2623.7,0.8165]
[1727277445549,3.81063,2624.3,2623.8,7.06963811]
[1727277445755,3.81063,2624.3,2624.0,0.813]
[1727277446111,3.81035,2624.5,2624.0,0.813]
[1727277446319,3.81048,2624.4,2624.0,6.99315673]
[1727277446628,3.81048,2624.4,2624.1,0.813]
[1727277446629,3.81051,2624.4,2624.1,0.813]
[1727277446826,3.8105,2624.4,2624.1,0.813]
[1727277447030,3.0,2624.4,2624.1,0.813]
[1727277447321,3.81068,2624.2,2624.1,0.813]
[1727277448143,3.81114,2623.9,2623.6,0.7566]
[1727277448336,3.81061,2624.3,2623.9,0.7566]
[1727277448544,3.81061,2624.3,2624.0,0.77500567]
[1727277448761,3.81061,2624.3,2624.1,0.8309]
[1727277449348,3.0,2624.4,2624.1,0.8309]
[1727277449556,5.39714345,2624.5,2624.2,3.18220673]
[1727277449557,3.81026,2624.5,2624.2,3.18220673]
[1727277449755,3.81026,2624.5,2624.3,0.8321]
[1727277450446,0.24254567,2624.4,2624.3,0.8321]
[1727277450652,0.24254567,2624.4,2624.3,0.78251167]
[1727277450816,0.24254567,2624.4,2624.3,1.61201167]
[1727277451016,0.24254567,2624.4,2624.3,5.49874124]
[1727277451320,5.39648345,2625.0,2624.3,4.59304167]
[1727277451522,4.0525424,2624.9,2624.6,0.7899]
[1727277451841,3.80991,2624.8,2624.6,0.7899]
[1727277452048,3.80995,2624.7,2624.2,0.7899]
[1727277452230,3.81031,2624.5,2624.2,0.7899]
[1727277452651,3.81053,2624.3,2624.2,0.7899]
[1727277454631,3.81039,2624.4,2624.2,0.7899]
[1727277455335,3.81053,2624.3,2624.2,0.7899]
[1727277455550,7.62088,2624.4,2624.2,0.7899]
[1727277455765,3.81039,2624.4,2624.2,0.7899]
[1727277456276,3.81026,2624.5,2624.2,0.7899]
[1727277456678,3.81053,2624.3,2624.2,0.7899]
[1727277458183,3.81032,2624.5,2624.2,0.7899]
[1727277458388,3.81042,2624.4,2624.2,0.7899]
[1727277458550,3.81032,2624.5,2624.2,0.7899]
[1727277459847,3.81041,2624.4,2624.2,0.7899]
[1727277460595,3.8104,2624.4,2624.2,0.7899]
[1727277461244,3.8104,2624.4,2624.2,1.249984]
[1727277462266,3.8102,2624.6,2624.2,1.249984]
[1727277462267,3.81025,2624.5,2624.2,1.249984]
[1727277462707,3.8104,2624.4,2624.2,1.249984]
[1727277463048,3.81026,2624.5,2624.2,1.249984]
[1727277463948,3.8102,2624.6,2624.2,1.249984]
[1727277464161,7.62039,2624.6,2624.3,4.0065078]
[1727277464383,3.81019,2624.6,2624.3,4.0065078]
[1727277464591,5.39646345,2625.0,2624.7,0.8302]
[1727277464768,3.80958,2625.0,2624.8,3.64623373]
[1727277465060,3.80891,2625.5,2625.1,0.8302]
[1727277465293,3.80891,2625.5,2625.1,4.01240673]
[1727277465583,3.80891,2625.5,2625.2,0.07617641]
[1727277465584,3.80882,2625.5,2625.2,0.07617641]
[1727277465790,3.80894,2625.4,2625.1,4.7945924]
[1727277466119,3.80915,2625.3,2625.1,4.01240673]
[1727277466247,3.80923,2625.2,2625.1,0.8302]
[1727277466684,3.80915,2625.3,2625.1,0.8302]
[1727277466878,3.80923,2625.2,2625.1,0.8302]
[1727277467185,5.39548345,2625.7,2625.1,4.4136474]
[1727277467396,9.20411345,2625.7,2625.3,3.98840673]
[1727277467566,7.61723,2625.7,2625.3,4.06457966]
[1727277467889,3.8086,2625.7,2625.3,4.06457966]
[1727277468099,3.80824,2625.9,2625.5,3.18220673]
[1727277468298,1.58688345,2626.0,2625.7,3.18220673]
[1727277468299,3.80819,2626.0,2625.7,3.18220673]
[1727277468651,3.80815,2626.0,2625.7,3.18220673]
[1727277468885,3.82292197,2626.2,2625.6,0.8062]
[1727277469185,3.82292197,2626.2,2625.8,0.8276]
[1727277469387,0.01504197,2626.2,2625.9,3.25836541]
[1727277469595,3.82290197,2626.2,2625.8,0.8276]
[1727277469885,3.80815,2626.0,2625.8,0.8276]
[1727277470062,3.80821,2625.9,2625.8,0.8276]
[1727277472693,3.8085,2625.8,2625.4,0.7855]
[1727277473257,3.80857,2625.7,2625.4,1.56317667]
[1727277473570,3.80857,2625.7,2625.4,0.7855]
[1727277473764,3.80872,2625.6,2625.4,0.7855]
[1727277474096,3.80857,2625.7,2625.4,0.7855]